fUSD/lending_fUSD_20251127
["ID","MTS","AMOUNT","RATE_DAILY","PERIOD"]
[394984702,1764254001747,1360.0,0.00025,120]
[394984742,1764254120245,224.72,0.00013322,2]
[394984743,1764254120454,224.72,0.00014654,2]
[394984749,1764254349606,478.84,0.0001472,2]
[394984758,1764254425808,-706.7361063,0.00015129,2]
[394984781,1764254574742,1367.99,0.00014726,2]
[394984909,1764255032159,-258.7738937,0.00015129,2]
[394984911,1764255032169,-696.26951894,0.00015574,2]
[394984913,1764255032190,-269.24048106,0.00015574,2]
[394984914,1764255032200,-1200.0,0.00015593,2]
[394984915,1764255032209,-3.49248231,0.00015594,2]
[394984916,1764255032243,-902.3544187,0.00015594,2]
[394984917,1764255032254,-5998.28133285,0.00015594,2]
[394984918,1764255032264,-293.0,0.00015839,2]
[394984919,1764255032273,-300.0,0.00015839,2]
[394984920,1764255032283,-3048.41893561,0.0001584,2]
[394984921,1764255032341,-500.0,0.0001584,2]
[394984922,1764255032419,-509.33266233,0.0001584,2]
[394984923,1764255032431,-1727.26703663,0.0001584,2]
[394984937,1764255038234,-11384.56568974,0.0001584,2]
[394984938,1764255038245,-250.0,0.00015869,2]
[394984939,1764255038254,-6362.07,0.00015876,2]
[394984940,1764255038264,-9883.75,0.00015877,2]
[394984941,1764255038274,-224.72,0.00015987,2]
[394984942,1764255038284,-500.0,0.00015999,2]
[394984943,1764255038293,-965.51,0.00016019,2]
[394984944,1764255038305,-479.5,0.000161,2]
[394984945,1764255038315,-479.5,0.000161,2]
[394984946,1764255038325,-479.5,0.000161,2]
[394984947,1764255038335,-479.5,0.000161,2]
[394984948,1764255038345,-479.5,0.000161,2]
[394984949,1764255038355,-479.5,0.00016141,2]
[394984950,1764255038366,-550.0,0.00016199,2]
[394984951,1764255038376,-150.0,0.000162,2]
[394984952,1764255038386,-150.0,0.000162,2]
[394984953,1764255038396,-150.0,0.000162,2]
[394984954,1764255038406,-150.0,0.000162,2]
[394984955,1764255038415,-150.0,0.000162,2]
[394984956,1764255038425,-150.0,0.000162,2]
[394984957,1764255038435,-150.0,0.000162,2]
[394984958,1764255038445,-150.0,0.000162,2]
[394984959,1764255038454,-150.0,0.000162,2]
[394984960,1764255038463,-150.0,0.000162,2]
[394984961,1764255038472,-150.0,0.000162,2]
[394984962,1764255038483,-150.0,0.00016333,2]
[394984963,1764255038492,-259.13,0.00016366,2]
[394984964,1764255038502,-2751.0,0.00016397,2]
[394984965,1764255038511,-5703.35,0.00016438,2]
[394984966,1764255038521,-702.2,0.00016441,2]
[394984967,1764255038531,-479.5,0.00016441,2]
[394984968,1764255038539,-150.0,0.00016443,2]
[394984969,1764255038548,-965.51,0.00016464,2]
[394984970,1764255038558,-1000.0,0.00016532,2]
[394984971,1764255038568,-9775.16,0.00016533,2]
[394984972,1764255038577,-500.0,0.00016537,2]
[394984973,1764255038587,-502.06483912,0.00016537,2]
[394984974,1764255038596,-491.25668134,0.00016537,2]
[394984975,1764255038606,-177.65160887,0.00016537,2]
[394984976,1764255038615,-500.0,0.00016537,2]
[394984977,1764255038625,-500.0,0.00016537,2]
[394984978,1764255038635,-500.0,0.00016537,2]
[394984979,1764255038644,-306.83292088,0.00016537,2]
[394984980,1764255038656,-256.3606094,0.00016537,2]
[394984981,1764255038667,-416.00484174,0.00016537,2]
[394984982,1764255038679,-83.99515826,0.00016537,2]
[394984983,1764255038688,-500.0,0.00016537,2]
[394984984,1764255038698,-500.0,0.00016537,2]
[394984985,1764255038707,-500.0,0.00016537,2]
[394984986,1764255038717,-500.0,0.00016537,2]
[394984987,1764255038726,-500.0,0.00016537,2]
[394984988,1764255038735,-500.0,0.00016537,2]
[394984989,1764255038745,-500.0,0.00016537,2]
[394984990,1764255038755,-500.0,0.00016537,2]
[394984991,1764255038765,-500.0,0.00016537,2]
[394984992,1764255038775,-500.0,0.00016537,2]
[394984993,1764255038784,-578.10394003,0.00016537,2]
[394984994,1764255038795,-500.0,0.00016537,2]
[394984995,1764255038804,-500.0,0.00016537,2]
[394984996,1764255038814,-500.0,0.00016537,2]
[394984997,1764255038825,-500.0,0.00016537,2]
[394984998,1764255038835,-500.0,0.00016537,2]
[394984999,1764255038844,-500.0,0.00016537,2]
[394985000,1764255038855,-500.0,0.00016537,2]
[394985001,1764255038865,-845.44,0.00016538,2]
[394985002,1764255038875,-3439.0,0.0001654,2]
[394985003,1764255038885,-1320.0,0.0001654,2]
[394985004,1764255038895,-610.0,0.0001654,2]
[394985005,1764255038905,-1602.0,0.0001654,2]
[394985006,1764255038915,-1257.0,0.0001654,2]
[394985007,1764255038926,-835.0,0.0001654,2]
[394985008,1764255038935,-5.25999191,0.0001654,2]
[394985009,1764255038946,-302.64238328,0.0001654,2]
[394985010,1764255039129,-352.09762481,0.0001654,2]
[394985011,1764255039139,-252.0,0.0001654,2]
[394985012,1764255039149,-2717.0,0.0001654,2]
[394985013,1764255039158,-562.0,0.0001654,2]
[394985014,1764255039167,-6125.82025267,0.0001654,2]
[394985015,1764255039179,-377.17974733,0.0001654,2]
[394985016,1764255039188,-300.0,0.000166,2]
[394985017,1764255039198,-500.0,0.000166,2]
[394985018,1764255039207,-500.0,0.000166,2]
[394985019,1764255039217,-500.0,0.000166,2]
[394985020,1764255039226,-500.0,0.000166,2]
[394985021,1764255039236,-500.0,0.000166,2]
[394985022,1764255039245,-500.0,0.000166,2]
[394985023,1764255039255,-500.0,0.000166,2]
[394985024,1764255039265,-500.0,0.000166,2]
[394985025,1764255039275,-500.0,0.000166,2]
[394985026,1764255039284,-500.0,0.000166,2]
[394985027,1764255039294,-620.0,0.000166,2]
[394985028,1764255039303,-500.0,0.000166,2]
[394985029,1764255039313,-500.0,0.000166,2]
[394985030,1764255039323,-500.0,0.000166,2]
[394985031,1764255039332,-475.70981304,0.000166,2]
[394985032,1764255039343,-500.0,0.000166,2]
[394985033,1764255039352,-500.0,0.000166,2]
[394985034,1764255039361,-500.0,0.000166,2]
[394985035,1764255039371,-500.0,0.000166,2]
[394985036,1764255039381,-500.0,0.000166,2]
[394985037,1764255039391,-500.0,0.000166,2]
[394985038,1764255039400,-500.0,0.000166,2]
[394985039,1764255039409,-500.0,0.000166,2]
[394985040,1764255039419,-500.0,0.000166,2]
[394985041,1764255039429,-500.0,0.000166,2]
[394985042,1764255039439,-500.0,0.000166,2]
[394985043,1764255039448,-1400.0,0.000166,2]
[394985044,1764255039457,-532.64403687,0.000166,2]
[394985045,1764255039467,-300.0,0.00016642,2]
[394985046,1764255039480,-300.0,0.00016642,2]
[394985047,1764255039489,-300.0,0.00016642,2]
[394985048,1764255039499,-300.0,0.00016642,2]
[394985049,1764255039508,-300.0,0.00016642,2]
[394985050,1764255039518,-195.0,0.00016642,2]
[394985051,1764255039527,-250.0,0.00016642,2]
[394985052,1764255039536,-157.71488302,0.00016642,2]
[394985053,1764255039545,-798.11196161,0.00016708,2]
[394985054,1764255039555,-299.09526351,0.0001676,2]
[394985055,1764255039565,-153.23453523,0.00016785,2]
[394985056,1764255039574,-845.44,0.00016812,2]
[394985057,1764255039583,-487.0,0.00016826,2]
[394985058,1764255039592,-200.0,0.00016872,2]
[394985059,1764255039601,-965.51,0.00016909,2]
[394985060,1764255039610,-3490.45641636,0.00016963,2]
[394985061,1764255039619,-150.0,0.00017008,2]
[394985062,1764255039629,-1212.76,0.00017008,2]
[394985063,1764255039638,-152.43,0.00017008,2]
[394985064,1764255039647,-150.0,0.00017008,2]
[394985065,1764255039657,-150.0,0.00017008,2]
[394985066,1764255039667,-150.0,0.00017008,2]
[394985067,1764255039676,-702.2,0.00017041,2]
[394985068,1764255039686,-958.74,0.00017041,2]
[394985069,1764255039698,-702.2,0.00017041,2]
[394985070,1764255039708,-702.2,0.00017041,2]
[394985071,1764255039719,-702.2,0.00017041,2]
[394985072,1764255039728,-702.2,0.00017041,2]
[394985073,1764255039737,-702.2,0.00017041,2]
[394985074,1764255039747,-702.2,0.00017041,2]
[394985075,1764255039757,-1102.76,0.00017041,2]
[394985076,1764255039766,-702.2,0.00017041,2]
[394985077,1764255039776,-702.04,0.00017041,2]
[394985078,1764255039786,-552.74744297,0.00017048,2]
[394985079,1764255039796,-845.44,0.00017086,2]
[394985080,1764255039807,-1251.96634007,0.00017126,2]
[394985081,1764255039816,-1680.0,0.00017141,2]
[394985082,1764255039826,-552.74744292,0.00017143,2]
[394985083,1764255039835,-1400.0,0.00017148,2]
[394985084,1764255039845,-177.78,0.00017178,2]
[394985085,1764255039855,-150.0,0.00017178,2]
[394985086,1764255039864,-177.78,0.00017178,2]
[394985087,1764255039873,-262.2247213,0.00017178,2]
[394985088,1764255040034,-981.3152787,0.00017178,2]
[394985089,1764255040043,-150.0,0.00017178,2]
[394985090,1764255040053,-177.78,0.00017178,2]
[394985091,1764255040063,-150.0,0.00017178,2]
[394985092,1764255040073,-177.78,0.00017178,2]
[394985094,1764255040082,-441.41,0.00017178,2]
[394985095,1764255040094,-552.74744292,0.00017237,2]
[394985096,1764255040103,-259.13,0.00017275,2]
[394985097,1764255040112,-2000.0,0.000173,2]
[394985098,1764255040122,-935.0,0.00017317,2]
[394985099,1764255040131,-224.72,0.00017319,2]
[394985100,1764255040139,-420.0,0.0001732,2]
[394985101,1764255040148,-552.74744292,0.00017332,2]
[394985102,1764255040157,-1229.495,0.00017344,2]
[394985103,1764255040166,-176.241,0.00017344,2]
[394985104,1764255040176,-845.44,0.0001736,2]
[394985105,1764255040185,-552.74744292,0.00017427,2]
[394985106,1764255040195,-552.74744292,0.00017521,2]
[394985107,1764255040204,-552.74744292,0.00017616,2]
[394985108,1764255040214,-845.44,0.00017634,2]
[394985109,1764255040223,-835.36079326,0.0001764,2]
[394985110,1764255040233,-427.01065334,0.00017667,2]
[394985111,1764255040242,-552.74744292,0.00017711,2]
[394985112,1764255040251,-191.0349,0.00017722,2]
[394985113,1764255040261,-150.99,0.00017728,2]
[394985114,1764255040271,-999.99,0.00017728,2]
[394985115,1764255040280,-3038.7,0.00017728,2]
[394985116,1764255040290,-256.21,0.00017728,2]
[394985117,1764255040299,-9999.99,0.00017728,2]
[394985118,1764255040309,-5372.9,0.00017728,2]
[394985119,1764255040319,-4993.69,0.00017728,2]
[394985120,1764255040328,-5003.9,0.00017728,2]
[394985121,1764255040337,-1114.06,0.00017728,2]
[394985122,1764255040347,-6581.12,0.00017728,2]
[394985123,1764255040357,-299.99,0.00017728,4]
[394985124,1764255040366,-499.99,0.00017728,2]
[394985125,1764255040375,-1538.67,0.00017728,2]
[394985126,1764255040385,-173.73152716,0.00017728,2]
[394985127,1764255040396,-2416.06200004,0.00017728,2]
[394985128,1764255040493,-905.07744046,0.00017728,2]
[394985129,1764255040524,-1323.96000076,0.00017728,2]
[394985130,1764255040535,-5181.15903158,0.00017728,2]
[394985131,1764255040544,-510.25,0.00017728,2]
[394985132,1764255040553,-552.74744292,0.00017805,2]
[394985133,1764255040562,-250.0,0.00017807,2]
[394985134,1764255040571,-156.40006226,0.00017829,2]
[394985135,1764255040580,-500.0,0.00017829,2]
[394985136,1764255040590,-373.67814621,0.00017829,2]
[394985137,1764255040599,-500.0,0.00017829,2]
[394985138,1764255040607,-354.66055103,0.00017829,2]
[394985139,1764255040617,-150.0,0.0001783,2]
[394985140,1764255040626,-150.0,0.0001783,2]
[394985141,1764255040634,-1212.76,0.0001783,2]
[394985142,1764255040643,-150.0,0.0001783,2]
[394985143,1764255040652,-834.96,0.0001783,2]
[394985144,1764255040662,-150.0,0.0001783,2]
[394985145,1764255040671,-1212.76,0.0001783,2]
[394985146,1764255040680,-150.0,0.0001783,2]
[394985147,1764255040689,-417.84,0.0001783,2]
[394985148,1764255040697,-150.0,0.0001783,2]
[394985149,1764255040706,-150.0,0.0001783,2]
[394985150,1764255040717,-150.0,0.0001783,2]
[394985151,1764255040727,-417.84,0.0001783,2]
[394985152,1764255040737,-150.0,0.0001783,2]
[394985153,1764255040747,-1212.76,0.0001783,2]
[394985154,1764255040756,-1212.76,0.0001783,2]
[394985155,1764255040765,-417.84,0.0001783,2]
[394985156,1764255040774,-150.0,0.0001783,2]
[394985157,1764255040783,-152.2,0.0001783,2]
[394985158,1764255040792,-301.77,0.0001783,2]
[394985159,1764255040801,-1212.76,0.0001783,2]
[394985160,1764255040810,-417.84,0.0001783,2]
[394985161,1764255040820,-150.0,0.0001783,2]
[394985162,1764255040829,-150.0,0.0001783,2]
[394985163,1764255040838,-150.0,0.0001783,2]
[394985164,1764255040847,-150.0,0.0001783,2]
[394985165,1764255040856,-150.0,0.0001783,2]
[394985166,1764255040865,-1212.76,0.0001783,2]
[394985167,1764255040874,-150.0,0.0001783,2]
[394985168,1764255040883,-150.0,0.0001783,2]
[394985169,1764255040892,-417.84,0.0001783,2]
[394985170,1764255040901,-431.43,0.0001783,2]
[394985171,1764255040911,-417.84,0.0001783,2]
[394985172,1764255040921,-150.0,0.0001783,2]
[394985173,1764255040931,-300.0,0.0001783,2]
[394985174,1764255040943,-150.0,0.0001783,2]
[394985175,1764255040952,-150.0,0.0001783,2]
[394985176,1764255040961,-417.84,0.0001783,2]
[394985177,1764255040970,-150.0,0.0001783,2]
[394985178,1764255040978,-339.78,0.0001783,2]
[394985179,1764255040988,-417.84,0.0001783,2]
[394985180,1764255040997,-150.0,0.0001783,2]
[394985181,1764255041006,-169.89,0.0001783,2]
[394985182,1764255041017,-355.28,0.0001783,2]
[394985183,1764255041029,-551.66,0.0001783,2]
[394985184,1764255041038,-154.0,0.0001783,2]
[394985185,1764255041047,-169.89,0.0001783,2]
[394985186,1764255041056,-355.52,0.0001783,2]
[394985187,1764255041067,-1103.0,0.0001783,2]
[394985188,1764255041076,-169.89,0.0001783,2]
[394985189,1764255041085,-177.78,0.0001783,2]
[394985190,1764255041095,-1101.32,0.0001783,2]
[394985191,1764255041106,-169.89,0.0001783,2]
[394985192,1764255041116,-551.66,0.0001783,2]
[394985193,1764255041125,-177.78,0.0001783,2]
[394985194,1764255041134,-169.89,0.0001783,2]
[394985195,1764255041143,-551.66,0.0001783,2]
[394985196,1764255041152,-355.52,0.0001783,2]
[394985197,1764255041161,-169.89,0.0001783,2]
[394985198,1764255041170,-551.66,0.0001783,2]
[394985199,1764255041179,-177.78,0.0001783,2]
[394985200,1764255041188,-169.89,0.0001783,2]
[394985201,1764255041197,-1111.3756,0.00017897,2]
[394985202,1764255041206,-2500.0,0.00017899,2]
[394985203,1764255041215,-2656.89407593,0.000179,2]
[394985204,1764255041224,-337.68938188,0.000179,2]
[394985205,1764255041234,-10000.0,0.000179,2]
[394985206,1764255041244,-1000.0,0.000179,2]
[394985207,1764255041254,-1759.20388011,0.000179,2]
[394985208,1764255041264,-24793.01845795,0.000179,2]
[394985209,1764255041273,-955.32170794,0.000179,2]
[394985210,1764255041282,-592.48568724,0.000179,2]
[394985211,1764255041291,-383.43227335,0.000179,2]
[394985212,1764255041301,-329.26281744,0.000179,2]
[394985213,1764255041311,-552.74744292,0.000179,2]
[394985214,1764255041320,-845.44,0.00017908,2]
[394985215,1764255041330,-300.0,0.00017953,2]
[394985216,1764255041339,-311.1,0.00017969,2]
[394985217,1764255041348,-500.0,0.00017973,2]
[394985218,1764255041357,-500.0,0.00017973,2]
[394985219,1764255041367,-500.0,0.00017973,2]
[394985220,1764255041376,-212.09281898,0.00017989,2]
[394985221,1764255041385,-150.0,0.00017989,2]
[394985222,1764255041394,-152.7582617,0.00017989,2]
[394985223,1764255041403,-200.0,0.00017989,2]
[394985224,1764255041412,-500.0,0.00017989,2]
[394985225,1764255041421,-270.01999727,0.00017989,2]
[394985226,1764255041431,-500.0,0.00017989,2]
[394985227,1764255041440,-150.0,0.00017989,2]
[394985228,1764255041449,-1311.0,0.00017989,2]
[394985229,1764255041458,-150.0,0.00017989,2]
[394985230,1764255041468,-151.89822632,0.00017989,2]
[394985231,1764255041478,-152.07277894,0.00017989,2]
[394985232,1764255041487,-150.0,0.00017989,2]
[394985233,1764255041496,-150.0,0.00017989,2]
[394985234,1764255041505,-150.0,0.00017989,2]
[394985235,1764255041514,-150.0,0.00017989,2]
[394985236,1764255041523,-288.12557967,0.00017989,2]
[394985237,1764255041532,-258.28528088,0.00017989,2]
[394985238,1764255041541,-222.31104798,0.00017989,2]
[394985239,1764255041550,-150.0,0.00017989,2]
[394985240,1764255041559,-158.73777718,0.00017989,2]
[394985241,1764255041568,-150.0,0.00017989,2]
[394985243,1764255041707,-151.0,0.00017997,2]
[394985244,1764255041717,-16943.10490576,0.00017999,2]
[394985245,1764255041726,-6306.6662943,0.00017999,2]
[394985246,1764255041736,-1291.35073426,0.00017999,2]
[394985247,1764255041767,-11346.48179112,0.00017999,2]
[394985248,1764255041777,-14282.48147199,0.00017999,2]
[394985264,1764255045906,-1410.86067932,0.00017999,2]
[394985265,1764255045920,-1262.17621679,0.00017999,2]
[394985266,1764255045932,-1543.09853918,0.00017999,2]
[394985267,1764255045943,-1630.68797686,0.00017999,2]
[394985268,1764255045954,-896.70793999,0.00017999,2]
[394985269,1764255045964,-846.95628169,0.00017999,2]
[394985270,1764255045976,-636.87301503,0.00017999,2]
[394985271,1764255045988,-429.98918981,0.00017999,2]
[394985272,1764255046000,-533.24435459,0.00017999,2]
[394985274,1764255046544,-635.67976215,0.00017999,2]
[394985280,1764255047069,-0.6848375,0.00017999,2]
[394985370,1764255772397,163.37,0.00019178,30]
[394985371,1764255791676,500.0,0.00024999,120]
[394985373,1764255798796,500.0,0.00024999,120]
[394985403,1764256216706,960.95,0.00013699,2]
[394985421,1764256237735,-434.108675,0.000155,2]
[394985423,1764256239518,-565.891325,0.000155,2]
[394985426,1764256239528,-300.73037782,0.0001575,2]
[394985427,1764256239538,-517.52271352,0.00016,2]
[394985428,1764256239762,-482.47728648,0.00016,2]
[394985429,1764256239772,-166.66,0.00016165,2]
[394985430,1764256239781,-300.0,0.00016199,2]
[394985431,1764256239791,-300.0,0.00016199,2]
[394985432,1764256239800,-476.55588793,0.00016199,2]
[394985433,1764256239811,-307.14380673,0.00016199,2]
[394985434,1764256239822,-416.30030534,0.00016199,2]
[394985435,1764256239831,-150.0,0.000162,2]
[394985436,1764256239840,-150.0,0.000162,2]
[394985437,1764256239849,-150.0,0.000162,2]
[394985438,1764256239858,-238.95743324,0.000162,2]
[394985439,1764256239867,-150.0,0.000162,2]
[394985440,1764256239876,-150.0,0.000162,2]
[394985441,1764256239887,-150.0,0.000162,2]
[394985442,1764256239896,-150.0,0.000162,2]
[394985443,1764256239905,-36.73480281,0.000162,2]
[394985456,1764256245072,-113.26519719,0.000162,2]
[394985457,1764256245081,-150.0,0.000162,2]
[394985458,1764256245091,-562.0,0.00016409,2]
[394985459,1764256245100,-6503.0,0.00016409,2]
[394985460,1764256245109,-6879.67,0.00016438,2]
[394985461,1764256245119,-166.66,0.00016506,2]
[394985462,1764256245128,-550.0,0.00016539,2]
[394985463,1764256245138,-150.0,0.0001654,2]
[394985464,1764256245147,-610.0,0.0001654,2]
[394985465,1764256245156,-1602.0,0.0001654,2]
[394985466,1764256245166,-1257.0,0.0001654,2]
[394985467,1764256245175,-823.0,0.0001654,2]
[394985468,1764256245185,-660.0,0.0001654,2]
[394985469,1764256245195,-2717.0,0.0001654,2]
[394985470,1764256245205,-252.0,0.0001654,2]
[394985471,1764256245215,-150.0,0.0001665,2]
[394985472,1764256245224,-517.7,0.00016731,2]
[394985473,1764256245233,-704.06,0.0001674,2]
[394985474,1764256245243,-150.0,0.00016762,2]
[394985475,1764256245252,-153.23453523,0.00016785,2]
[394985476,1764256245261,-166.66,0.00016846,2]
[394985477,1764256245271,-150.99,0.00016922,2]
[394985478,1764256245280,-999.99,0.00016922,2]
[394985479,1764256245290,-9999.99,0.00016922,2]
[394985480,1764256245300,-9999.99,0.00016922,2]
[394985481,1764256245309,-500.0,0.00016999,2]
[394985482,1764256245319,-500.0,0.00016999,2]
[394985483,1764256245329,-500.0,0.00016999,2]
[394985484,1764256245338,-500.0,0.00016999,2]
[394985485,1764256245347,-500.0,0.00016999,2]
[394985486,1764256245357,-500.0,0.00016999,2]
[394985487,1764256245368,-500.0,0.00016999,2]
[394985488,1764256245378,-500.0,0.00016999,2]
[394985489,1764256245387,-500.0,0.00016999,2]
[394985490,1764256245396,-500.0,0.00016999,2]
[394985491,1764256245407,-500.0,0.00016999,2]
[394985492,1764256245417,-500.0,0.00016999,2]
[394985493,1764256245426,-500.0,0.00016999,2]
[394985494,1764256245435,-500.0,0.00016999,2]
[394985495,1764256245447,-500.0,0.00016999,2]
[394985496,1764256245457,-500.0,0.00016999,2]
[394985497,1764256245466,-180.16512806,0.00016999,2]
[394985498,1764256245476,-168.61747997,0.00016999,2]
[394985499,1764256245486,-500.0,0.00016999,2]
[394985500,1764256245495,-500.0,0.00016999,2]
[394985501,1764256245505,-501.96607481,0.00016999,2]
[394985502,1764256245515,-500.0,0.00016999,2]
[394985503,1764256245524,-500.0,0.00016999,2]
[394985504,1764256245534,-500.0,0.00016999,2]
[394985505,1764256245544,-500.0,0.00016999,2]
[394985506,1764256245554,-500.0,0.00016999,2]
[394985507,1764256245564,-500.0,0.00016999,2]
[394985508,1764256245574,-500.0,0.00016999,2]
[394985509,1764256245584,-500.0,0.00016999,2]
[394985510,1764256245594,-250.0,0.00017,2]
[394985511,1764256245604,-115083.73696169,0.00017,5]
[394985512,1764256245613,-169.89,0.00017008,2]
[394985513,1764256245623,-169.89,0.00017008,2]
[394985514,1764256245632,-551.66,0.00017008,2]
[394985515,1764256245642,-169.89,0.00017008,2]
[394985516,1764256245652,-551.66,0.00017008,2]
[394985517,1764256245661,-1103.32,0.00017008,2]
[394985518,1764256245671,-169.89,0.00017008,2]
[394985519,1764256245680,-551.66,0.00017008,2]
[394985520,1764256245690,-177.78,0.00017008,2]
[394985521,1764256245699,-169.89,0.00017008,2]
[394985522,1764256245709,-300.0,0.0001705,2]
[394985523,1764256245719,-300.0,0.0001705,2]
[394985524,1764256245728,-300.0,0.0001705,2]
[394985525,1764256245738,-300.0,0.0001705,2]
[394985526,1764256245747,-300.0,0.0001705,2]
[394985527,1764256245758,-195.0,0.0001705,2]
[394985528,1764256245767,-193.0,0.0001705,2]
[394985529,1764256245776,-150.0,0.000171,2]
[394985530,1764256245786,-150.0,0.000171,2]
[394985531,1764256245796,-150.0,0.000171,2]
[394985532,1764256245953,-150.0,0.000171,2]
[394985533,1764256245962,-150.0,0.000171,2]
[394985534,1764256245972,-150.0,0.000171,2]
[394985535,1764256245981,-150.0,0.000171,2]
[394985536,1764256245991,-200.0,0.00017125,2]
[394985537,1764256246002,-166.66,0.00017186,2]
[394985538,1764256246011,-1530.82892166,0.00017194,2]
[394985550,1764256398253,500.0,0.00024999,120]
[394985551,1764256436324,10000.0,0.00022,30]
[394985555,1764256442487,10000.0,0.00022,30]
[394985558,1764256453742,9039.06,0.00014731,2]
[394985559,1764256453774,960.94,0.00014731,2]
[394985560,1764256459834,9039.07,0.00014731,2]
[394985561,1764256459863,960.93,0.00014731,2]
[394985562,1764256465630,10000.0,0.00014731,2]
[394985563,1764256471070,0.01,0.00014731,2]
[394985564,1764256471095,9999.99,0.00014731,2]
[394985588,1764256652789,1078.32,8.402e-05,2]
[394985589,1764256652976,1078.32,8.844e-05,2]
[394985590,1764256653194,1078.32,9.286e-05,2]
[394985592,1764256653408,1078.32,9.729e-05,2]
[394985593,1764256653606,1078.32,0.00010171,2]
[394985594,1764256653801,1078.32,0.00010613,2]
[394985595,1764256653988,1078.32,0.00011055,2]
[394985596,1764256654379,1078.32,0.00011498,2]
[394985597,1764256654592,1078.32,0.0001194,2]
[394985598,1764256654811,295.13,0.00012382,2]
[394985599,1764256654840,783.19,0.00012382,2]
[394985600,1764256655013,1078.32,0.00012824,2]
[394985601,1764256655223,1078.32,0.00013266,2]
[394985602,1764256655432,1078.32,0.00013709,2]
[394985603,1764256655624,1078.32,0.00014151,2]
[394985604,1764256655819,1078.32,0.00014593,2]
[394985622,1764256997117,500.0,0.00024999,120]
[394985632,1764257130239,-212.12966822,0.00015035,2]
[394985633,1764257130272,-1078.32,0.00015035,2]
[394985634,1764257130303,-1078.32,0.00015478,2]
[394985635,1764257130334,-1078.32,0.0001592,2]
[394985636,1764257130368,-150.0,0.000162,2]
[394985637,1764257130400,-150.0,0.000162,2]
[394985638,1764257130431,-150.0,0.000162,2]
[394985639,1764257130465,-150.0,0.000162,2]
[394985640,1764257130498,-150.0,0.000162,2]
[394985641,1764257130530,-150.0,0.000162,2]
[394985642,1764257130561,-150.0,0.000162,2]
[394985643,1764257130592,-152.10113013,0.000162,2]
[394985644,1764257130624,-150.00000001,0.000162,2]
[394985645,1764257130660,-150.0,0.000162,2]
[394985646,1764257136133,-1078.32,0.00016362,2]
[394985647,1764257136169,-300.0,0.00016538,2]
[394985648,1764257136204,-300.0,0.00016538,2]
[394985649,1764257136246,-1200.0,0.00016538,2]
[394985650,1764257136278,-300.0,0.00016538,2]
[394985651,1764257136311,-300.0,0.00016539,2]
[394985652,1764257136343,-300.0,0.00016539,2]
[394985653,1764257136376,-300.0,0.00016539,2]
[394985654,1764257136408,-300.0,0.00016539,2]
[394985655,1764257136441,-300.0,0.00016539,2]
[394985656,1764257136472,-200.0,0.00016611,2]
[394985657,1764257151160,1427.33034884,0.00011719,2]